bitfinex/quotes_SOLUSD_20251128
["timestamp","ask_amount","ask_price","bid_price","bid_amount"]
[1764288851302,44.74876844,140.74,140.73,0.1]
[1764288853008,37.63906716,140.74,140.73,0.1]
[1764288853200,40.75906716,140.74,140.73,0.1]
[1764288861826,43.60695438,140.74,140.73,0.1]
[1764288863135,61.37020576,140.74,140.7,0.1]
[1764288863435,8.80994492,140.72,140.7,0.1]
[1764288863636,17.53866939,140.71,140.7,0.1]
[1764288864433,24.64548482,140.71,140.7,0.1]
[1764288871322,25.31548482,140.71,140.7,0.1]
[1764288871840,32.42473765,140.71,140.7,0.1]
[1764288875347,28.63473765,140.71,140.7,0.77]
[1764288875575,31.75473765,140.71,140.7,0.77]
[1764288875949,24.64548482,140.71,140.7,0.77]
[1764288886252,24.64548482,140.71,140.7,0.1]
[1764288886653,24.64548482,140.71,140.7,0.81]
[1764288888854,13.55490261,140.71,140.7,0.81]
[1764288889043,16.67490261,140.71,140.7,7.91732054]
[1764288892553,16.67490261,140.71,140.7,0.81]
[1764288892754,16.67490261,140.71,140.7,7.91732054]
[1764288896158,13.55490261,140.71,140.7,7.91732054]
[1764288896357,16.67490261,140.71,140.7,7.91732054]
[1764288897136,11.92994492,140.71,140.7,7.91732054]
[1764288899857,0.86376678,140.76,140.7,25.68562189]
[1764288900058,16.6925136,140.75,140.71,0.71]
[1764288900261,4.76256868,140.74,140.73,16.308864]
[1764288900445,3.12,140.8,140.73,16.308864]
[1764288900646,4.76620219,140.79,140.74,0.71]
[1764288900948,8.80994492,140.79,140.74,0.71]
[1764288901148,3.12,140.8,140.74,0.71]
[1764288901356,3.12,140.8,140.75,4.76620219]
[1764288901557,7.88212307,140.8,140.76,7.10429099]
[1764288901753,3.12,140.8,140.76,7.81429099]
[1764288901954,3.12,140.8,140.77,0.71]
[1764288902948,9.50994492,140.79,140.76,7.10429099]
[1764288903261,10.3737117,140.79,140.75,7.10471179]
[1764288903465,10.3737117,140.79,140.76,0.71]
[1764288905341,75.16764918,140.85,140.76,7.81427986]
[1764288905342,0.86376678,140.84,140.76,7.81427986]
[1764288905646,11.92994492,140.83,140.76,7.81427986]
[1764288905952,11.92994492,140.83,140.79,16.308864]
[1764288906363,11.92994492,140.83,140.8,0.71]
[1764288907851,11.92994492,140.83,140.8,7.81199078]
[1764288908251,11.92994492,140.83,140.81,0.71]
[1764288909849,11.92994492,140.83,140.81,7.81160488]
[1764288910352,11.92994492,140.83,140.82,0.68]
[1764288910673,3.12,140.83,140.82,0.68]
[1764288911664,11.92994492,140.83,140.8,7.7821163]
[1764288911864,11.92994492,140.83,140.81,0.67]
[1764288915763,11.92994492,140.83,140.81,7.77174596]
[1764288916472,11.92994492,140.83,140.82,0.67]
[1764288916971,11.92994492,140.83,140.81,7.10174596]
[1764288916972,11.92994492,140.83,140.81,7.77174596]
[1764288918974,0.71,140.82,140.79,16.308864]
[1764288919278,9.51994492,140.82,140.79,0.67]
[1764288919473,8.80994492,140.82,140.8,0.67]
[1764288920272,4.69376678,140.83,140.8,0.67]
[1764288921277,4.69376678,140.83,140.8,7.7722412]
[1764288922176,0.71,140.82,140.78,0.67]
[1764288922479,8.80994492,140.81,140.78,0.67]
[1764288922770,3.12,140.8,140.78,0.67]
[1764288923362,0.71,140.79,140.76,16.308864]
[1764288923581,9.51994492,140.79,140.73,0.67]
[1764288923954,8.80994492,140.77,140.73,0.67]
[1764288924278,8.80994492,140.75,140.73,7.7753749]
[1764288924772,8.80994492,140.75,140.74,0.67]
[1764288926278,8.80994492,140.75,140.74,7.77530055]
[1764288929877,8.80994492,140.75,140.74,0.67]
[1764288930177,8.80994492,140.75,140.74,7.77530055]
[1764288934473,8.80994492,140.75,140.73,7.10562429]
[1764288934682,8.80994492,140.75,140.73,7.77562429]
[1764288934867,8.80994492,140.75,140.74,0.67]
[1764288935063,3.12,140.76,140.74,0.67]
[1764288935268,11.92994492,140.76,140.75,7.10479573]
[1764288935671,11.92994492,140.76,140.75,7.77479573]
[1764288935862,0.86376678,140.79,140.75,7.77479573]
[1764288936186,3.12,140.79,140.76,0.67]
[1764288936485,8.80994492,140.81,140.76,0.67]
[1764288936692,3.12,140.8,140.76,0.67]
[1764288937288,3.12,140.8,140.77,7.10378631]
[1764288937869,3.12,140.8,140.78,0.67]
[1764288939370,3.12,140.8,140.79,7.10277718]
[1764288939768,3.12,140.8,140.79,7.77277718]
[1764288941693,0.66,140.86,140.79,25.52972014]
[1764288941899,0.66,140.86,140.8,0.65]
[1764288941900,11.92994492,140.85,140.8,0.65]
[1764288942579,11.92994492,140.85,140.82,16.308864]
[1764288942975,11.92994492,140.85,140.83,0.65]
[1764288943482,11.92994492,140.85,140.84,7.1002556]
[1764288946787,3.12,140.85,140.84,7.7502556]
[1764288946972,12.12994492,140.88,140.84,25.50089462]
[1764288947172,12.78994492,140.88,140.85,0.65]
[1764288947476,12.78994492,140.88,140.86,7.09924747]
[1764288949471,12.78994492,140.88,140.85,7.0997515]
[1764288949673,12.78994492,140.88,140.85,7.7497515]
[1764288949674,8.80994492,140.86,140.85,7.7497515]
[1764288950624,8.80994492,140.86,140.85,7.0997515]
[1764288950803,9.46994492,140.86,140.82,16.958864]
[1764288951096,9.46994492,140.86,140.83,0.65]
[1764288952987,9.46994492,140.86,140.84,7.1002556]
[1764288953395,8.80994492,140.86,140.84,7.1002556]
[1764288954195,9.46994492,140.86,140.84,7.1002556]
[1764288956706,8.80994492,140.86,140.84,7.1002556]
[1764288956871,9.46994492,140.86,140.84,7.1002556]
[1764288957077,9.46994492,140.86,140.84,7.7502556]
[1764288957386,9.46994492,140.86,140.84,7.1002556]
[1764288960893,8.80994492,140.84,140.83,7.10059633]
[1764288961385,8.80994492,140.84,140.83,7.75059633]
[1764288964012,8.80994492,140.86,140.83,25.50249578]
[1764288964196,8.80994492,140.86,140.84,0.65]
[1764288964393,8.80994492,140.87,140.84,0.65]
[1764288966405,0.2,140.88,140.85,7.0997515]
[1764288966783,0.2,140.88,140.86,0.65]
[1764288968488,0.2,140.88,140.87,7.09874352]
[1764288969090,9.66994492,140.88,140.87,7.09874352]
[1764288970197,9.66994492,140.88,140.82,54.93477925]
[1764288970198,8.80994492,140.87,140.83,17.75127572]
[1764288970487,8.80994492,140.87,140.83,24.8520355]
[1764288970488,8.80994492,140.85,140.83,24.8520355]
[1764288970696,8.80994492,140.85,140.83,7.10075978]
[1764288970885,9.51994492,140.85,140.83,7.10075978]
[1764288971992,9.51994492,140.85,140.82,41.16328808]
[1764288972192,9.51994492,140.85,140.82,41.82328808]
[1764288973792,8.80994492,140.83,140.82,23.41012802]
[1764288973993,8.80994492,140.83,140.81,7.10164293]
[1764288974206,9.51994492,140.83,140.81,7.10164293]
[1764288975900,9.51994492,140.85,140.8,17.75529039]
[1764288976106,9.51994492,140.85,140.82,0.66]
[1764288976502,8.80994492,140.86,140.82,0.66]
[1764288976703,12.63994492,140.86,140.82,0.66]
[1764288978015,12.63994492,140.86,140.83,24.85265923]
[1764288978513,12.63994492,140.86,140.83,25.55265923]
[1764288983136,0.67,140.85,140.79,0.7]
[1764288983320,8.80994492,140.83,140.78,0.7]
[1764288983512,3.12,140.82,140.78,0.7]
[1764288983715,3.79,140.82,140.78,0.7]
[1764288984116,3.79,140.82,140.79,24.85972014]
[1764288984535,9.47994492,140.81,140.79,7.10277718]
[1764288985724,8.80994492,140.81,140.78,25.561486]
[1764288986820,9.47994492,140.81,140.78,25.561486]
[1764288992836,9.47994492,140.81,140.79,0.7]
[1764288993041,8.80994492,140.81,140.79,0.7]
[1764288993216,9.47994492,140.81,140.78,25.561486]
[1764288993969,0.67,140.8,140.77,16.308864]
[1764288994117,13.57784763,140.79,140.72,0.7]
[1764288994315,8.80994492,140.77,140.7,0.1]
[1764288994739,8.80994492,140.75,140.7,7.20727005]
[1764288994929,8.80994492,140.73,140.7,7.20727005]
[1764288995129,8.80994492,140.73,140.7,7.90727005]
[1764288995454,9.47994492,140.73,140.7,0.1]
[1764288996126,9.47994492,140.73,140.7,7.90727661]
[1764288998843,9.47994492,140.73,140.7,0.1]
[1764288999237,8.80994492,140.73,140.7,0.1]
[1764288999432,8.80994492,140.71,140.7,0.1]
[1764289000344,0.72,140.71,140.7,0.1]
[1764289001637,9.52994492,140.71,140.7,0.1]
[1764289002344,16.63676035,140.71,140.7,0.1]
[1764289003427,19.75676035,140.71,140.7,0.1]
[1764289008031,13.5137117,140.71,140.7,0.1]
[1764289008763,20.62052713,140.71,140.7,0.1]
[1764289010242,27.32806462,140.71,140.7,0.1]
[1764289011249,20.62052713,140.71,140.7,0.1]
[1764289011852,11.92994492,140.71,140.7,0.1]
[1764289013132,12.64994492,140.71,140.7,0.1]
[1764289013330,9.52994492,140.71,140.7,0.1]
[1764289013530,12.66994492,140.71,140.7,0.1]
[1764289015137,19.77676035,140.71,140.7,0.1]
[1764289021057,8.80994492,140.71,140.7,0.1]
[1764289021261,11.94994492,140.71,140.7,0.1]
[1764289022162,11.94994492,140.71,140.7,0.79]
[1764289022555,3.14,140.71,140.7,7.89732054]
[1764289031070,8.80994492,140.73,140.7,7.89732054]
[1764289031249,11.94994492,140.73,140.71,0.7]
[1764289032359,3.14,140.73,140.71,0.7]
[1764289032859,3.14,140.73,140.72,7.1063104]
[1764289033572,3.14,140.73,140.72,7.8063104]
[1764289033756,8.80994492,140.76,140.72,25.5720864]
[1764289033958,8.80994492,140.76,140.73,0.7]
[1764289034466,8.80994492,140.74,140.72,7.1063104]
[1764289034669,0.69,140.75,140.72,7.8063104]
[1764289035478,9.49994492,140.76,140.73,0.7]
[1764289035773,8.80994492,140.76,140.73,0.7]
[1764289037472,8.80994492,140.76,140.74,7.10530055]
[1764289037885,8.80994492,140.76,140.75,0.71]
[1764289039274,3.14,140.77,140.76,7.10429099]
[1764289039780,3.14,140.77,140.76,7.81429099]
[1764289041582,3.14,140.77,140.75,17.018864]
[1764289041779,8.80994492,140.76,140.72,41.1809504]
[1764289041973,9.48994492,140.76,140.73,0.71]
[1764289042175,8.80994492,140.76,140.73,0.71]
[1764289043560,8.80994492,140.76,140.74,7.10530055]
[1764289044075,8.80994492,140.76,140.74,7.81530055]
[1764289048664,8.80994492,140.76,140.75,0.71]
[1764289050090,8.80994492,140.76,140.73,17.76387511]
[1764289050391,8.80994492,140.76,140.74,0.71]
[1764289050772,9.48994492,140.76,140.73,17.018864]
[1764289051192,8.80994492,140.76,140.74,0.71]
[1764289051492,7.10295615,140.79,140.74,0.71]
[1764289051493,11.94994492,140.79,140.74,0.71]
[1764289051674,12.62994492,140.79,140.74,0.71]
[1764289052193,11.94994492,140.79,140.77,7.10378631]
[1764289052375,3.14,140.79,140.77,7.10378631]
[1764289052573,3.14,140.79,140.78,0.71]
[1764289054178,3.14,140.79,140.78,7.81328171]
[1764289054376,3.14,140.79,140.78,7.10328171]
[1764289055496,3.14,140.79,140.78,7.81328171]
[1764289056392,3.14,140.79,140.76,17.76062371]
[1764289056571,8.80994492,140.78,140.77,7.10378631]
[1764289056781,3.14,140.79,140.77,7.81378631]
[1764289057683,8.80994492,140.8,140.78,0.71]
[1764289059895,8.80994492,140.8,140.79,7.10277718]
[1764289064409,8.80994492,140.8,140.78,7.81317242]
[1764289064575,0.7,140.79,140.78,7.10317242]
[1764289064885,0.7,140.79,140.76,7.10429099]
[1764289066394,0.7,140.79,140.73,24.87031904]
[1764289066597,7.8028656,140.79,140.73,7.10580544]
[1764289066789,8.80994492,140.77,140.73,7.10580544]
[1764289066995,8.80994492,140.75,140.73,7.10580544]
[1764289067194,9.50994492,140.74,140.73,7.10580544]
[1764289068093,8.80994492,140.74,140.72,7.1063104]
[1764289068700,9.50994492,140.74,140.72,7.1063104]
[1764289074901,9.50994492,140.74,140.71,25.56346198]
[1764289079606,9.50994492,140.73,140.71,7.10681543]
[1764289080128,9.50994492,140.73,140.71,7.79681543]
[1764289080413,8.80994492,140.73,140.71,7.79681543]
[1764289081217,4.00376678,140.76,140.71,24.87385402]
[1764289081388,8.80994492,140.75,140.73,7.10580544]
[1764289081890,8.80994492,140.75,140.74,0.69]
[1764289082090,8.80994492,140.75,140.73,7.10580544]
[1764289082287,8.80994492,140.75,140.73,7.79580544]
[1764289085009,9.50994492,140.75,140.73,7.10580544]
[1764289085211,9.50994492,140.74,140.73,7.10580544]
[1764289085737,8.80994492,140.74,140.73,7.10580544]
[1764289086613,9.50994492,140.74,140.72,24.870933]
[1764289087099,9.50994492,140.73,140.72,7.1063104]
[1764289087504,0.7,140.74,140.72,7.1063104]
[1764289088724,0.7,140.74,140.71,7.10681543]
[1764289088883,0.7,140.74,140.71,7.79681543]
[1764289090009,0.7,140.74,140.71,7.10681543]
[1764289091710,12.57651912,140.74,140.7,7.2071129]
[1764289091904,0.7,140.74,140.7,7.2071129]
[1764289092097,0.69,140.73,140.7,7.2071129]
[1764289092298,3.12,140.72,140.7,7.2071129]
[1764289093603,3.81,140.72,140.7,7.2071129]
[1764289101238,3.12,140.72,140.7,7.8671129]
[1764289104249,3.81,140.72,140.7,7.8671129]
[1764289104416,3.12,140.72,140.7,7.8671129]
[1764289104626,3.81,140.72,140.7,7.8671129]
[1764289104839,3.12,140.72,140.7,7.8671129]
[1764289107227,9.49994492,140.71,140.7,0.1]
[1764289107936,9.49994492,140.71,140.7,7.20732054]
[1764289109246,14.28372848,140.71,140.7,7.20732054]
[1764289111917,14.28372848,140.71,140.7,0.1]
[1764289113146,14.28372848,140.71,140.7,7.20732054]
[1764289114235,14.28372848,140.71,140.7,0.1]
[1764289115556,21.39054391,140.71,140.7,0.1]
[1764289130784,14.28372848,140.71,140.7,0.1]
[1764289130967,21.39054391,140.71,140.7,0.1]
[1764289131758,13.59372848,140.71,140.7,0.1]
[1764289132264,14.25372848,140.71,140.7,0.1]
[1764289133548,14.24879566,140.71,140.7,0.1]
[1764289134459,13.58879566,140.71,140.7,0.1]
[1764289135163,13.58879566,140.71,140.7,0.77]
[1764289135664,13.58879566,140.71,140.7,0.1]
[1764289135665,14.24879566,140.71,140.7,0.1]
[1764289135963,21.35561109,140.71,140.7,0.1]
[1764289137358,14.24879566,140.71,140.7,0.1]
[1764289137764,21.35561109,140.71,140.7,0.1]
[1764289143465,37.66447509,140.71,140.7,0.1]
[1764289145652,59.02819237,140.71,140.7,0.1]
[1764289148768,37.66447509,140.71,140.7,0.1]
[1764289149167,21.35561109,140.71,140.7,0.1]
[1764289150278,20.69561109,140.71,140.7,0.1]
[1764289150577,21.38561109,140.71,140.7,0.1]
[1764289151973,13.58879566,140.71,140.7,0.1]
[1764289152268,14.29879566,140.71,140.7,0.1]
[1764289152567,21.40561109,140.71,140.7,0.1]
[1764289155774,20.69561109,140.71,140.7,0.1]
[1764289157774,13.58879566,140.71,140.7,0.8]
[1764289158156,20.69561109,140.71,140.7,0.8]
[1764289158358,20.69561109,140.71,140.7,0.1]
[1764289161874,21.40561109,140.71,140.7,0.1]
[1764289162380,20.69561109,140.71,140.7,0.1]
[1764289162580,21.40561109,140.71,140.7,0.1]
[1764289164571,13.58879566,140.71,140.7,0.8]
[1764289165169,13.58879566,140.71,140.7,0.1]
[1764289167281,13.58879566,140.71,140.7,0.8]
[1764289167471,13.58879566,140.71,140.7,7.90732054]
[1764289171305,13.58879566,140.71,140.7,0.1]
[1764289171790,14.45256244,140.71,140.7,0.1]
[1764289172802,13.58879566,140.71,140.7,7.90732054]
[1764289173499,8.80994492,140.71,140.7,7.90732054]
[1764289178307,3.12,140.72,140.7,7.90732054]
[1764289178510,11.92994492,140.72,140.71,0.7]
[1764289179996,11.92994492,140.72,140.71,7.80681543]
[1764289180596,8.67826876,140.76,140.71,7.80681543]
[1764289180597,0.86376678,140.76,140.71,25.57385402]
[1764289180788,14.45256244,140.77,140.72,0.68]
[1764289180789,16.70925181,140.75,140.72,0.68]
[1764289180991,11.92994492,140.75,140.72,0.68]
[1764289182184,11.92994492,140.75,140.73,7.10580544]
[1764289182705,11.92994492,140.75,140.74,0.68]
[1764289184093,3.12,140.75,140.74,0.68]
[1764289184295,3.12,140.75,140.74,7.78530055]
[1764289185201,4.77091248,140.79,140.74,25.54855193]
[1764289185386,3.12,140.78,140.75,0.68]
[1764289187090,3.12,140.78,140.76,7.10429099]
[1764289187489,3.12,140.78,140.77,0.68]
[1764289188295,3.12,140.78,140.77,7.78378631]
[1764289198228,8.80994492,140.81,140.77,7.78378631]
[1764289198531,8.80994492,140.81,140.78,0.68]
[1764289198699,8.80994492,140.81,140.79,7.10277718]
[1764289199115,8.80994492,140.81,140.8,0.68]
[1764289200426,11.92994492,140.82,140.81,16.308864]
[1764289200634,1.56376678,140.86,140.81,41.16505319]
[1764289200851,11.92994492,140.85,140.82,0.68]
[1764289202736,11.92994492,140.85,140.83,7.10075978]
[1764289203226,11.92994492,140.85,140.84,0.68]
[1764289203537,11.92994492,140.85,140.83,7.78075978]
[1764289206110,1.06376678,140.88,140.84,0.68]
[1764289206310,9.00994492,140.88,140.85,16.308864]
[1764289206539,9.00994492,140.88,140.85,29.13880892]
[1764289206822,9.00994492,140.88,140.86,0.68]
[1764289208007,0.2,140.88,140.86,0.68]
[1764289208211,0.2,140.88,140.87,7.09874352]
[1764289208710,0.2,140.88,140.87,7.77874352]
[1764289209438,0.2,140.89,140.87,7.77874352]
[1764289209740,0.2,140.9,140.89,16.308864]
[1764289210108,0.2,140.92,140.91,7.0967284]
[1764289210431,0.2,140.92,140.91,7.7567284]
[1764289211012,1e-08,140.92,140.91,7.7567284]
[1764289211230,1e-08,140.92,140.91,10.59894959]
[1764289211731,0.2,140.94,140.93,16.308864]
[1764289211732,1e-08,140.94,140.93,16.308864]
[1764289211938,1e-08,140.94,140.93,19.428864]
[1764289212235,1e-08,140.94,140.93,24.06458528]
[1764289218114,1e-08,140.94,140.93,33.0745302]
[1764289220223,1e-08,140.94,140.93,35.07453019]
[1764289223242,1e-08,140.94,140.93,33.0745302]
[1764289226545,1e-08,140.94,140.93,36.1945302]
[1764289228835,1e-08,140.94,140.93,27.18458528]
[1764289230149,1e-08,140.94,140.93,23.40458528]
[1764289230924,1e-08,140.94,140.93,7.09572128]
[1764289231327,1e-08,140.94,140.93,24.07458528]
[1764289233458,1e-08,140.94,140.93,27.19458528]
[1764289235535,1e-08,140.94,140.93,26.52458528]
[1764289236236,1e-08,140.94,140.93,27.19458528]
[1764289239663,1e-08,140.94,140.93,26.52458528]
[1764289243329,1e-08,140.94,140.93,27.23458528]
[1764289248429,1e-08,140.94,140.93,26.52458528]
[1764289248630,1e-08,140.94,140.93,16.308864]
[1764289248953,1e-08,140.94,140.93,24.11458528]
[1764289252855,1e-08,140.94,140.93,27.23458528]
[1764289254548,1e-08,140.94,140.93,10.92572128]
[1764289259043,1e-08,140.97,140.96,16.308864]
[1764289259259,1e-08,140.98,140.96,3.12]
[1764289259453,1e-08,140.98,140.97,16.308864]
[1764289260259,0.86,141.0,140.98,16.308864]
[1764289260462,0.2,141.01,140.98,19.428864]
[1764289260762,0.2,141.02,141.0,7.09219858]
[1764289260934,0.2,141.02,141.0,10.21219858]
[1764289261258,0.2,141.02,141.0,10.92219858]
[1764289261560,0.2,141.02,141.0,10.21219858]
[1764289262538,1e-08,141.02,141.0,10.21219858]
[1764289262742,1e-08,141.02,141.01,0.71]
[1764289263259,1e-08,141.04,141.03,16.308864]
[1764289263467,0.2,141.06,141.03,16.308864]
[1764289263468,1e-08,141.06,141.03,21.42886399]
[1764289263638,1e-08,141.06,141.04,0.71]
[1764289263839,1e-08,141.06,141.05,19.428864]
[1764289264242,1e-08,141.06,141.05,20.138864]
[1764289264444,1e-08,141.06,141.05,3.83]
[1764289264964,1e-08,141.09,141.08,16.308864]
[1764289265261,1e-08,141.09,141.08,5.11999999]
[1764289265461,1e-08,141.09,141.08,5.82999999]
[1764289265649,1e-08,141.12,141.11,16.308864]
[1764289266243,1e-08,141.12,141.1,19.428864]
[1764289267140,1e-08,141.12,141.11,7.08666997]
[1764289267564,0.2,141.15,141.14,16.308864]
[1764289269266,0.2,141.15,141.14,23.39402766]
[1764289269666,1e-08,141.15,141.14,23.39402766]
[1764289273154,0.71000001,141.15,141.14,23.39402766]
[1764289273353,1e-08,141.15,141.14,23.39402766]
[1764289276676,0.71000001,141.15,141.14,7.08516366]
[1764289277174,0.71000001,141.15,141.1,7.08717221]
[1764289277175,8.80994492,141.14,141.1,7.08717221]
[1764289277357,0.71000001,141.15,141.06,7.0891819]
[1764289277563,8.80994492,141.12,141.04,7.09018718]
[1764289277880,8.80994492,141.12,141.05,17.72370716]
[1764289278074,0.62,141.11,141.05,18.43370716]
[1764289278283,8.80994492,141.13,141.06,0.71]
[1764289278654,0.62,141.12,141.06,0.71]
[1764289278855,0.62,141.12,141.05,17.72370716]
[1764289279056,8.80994492,141.11,141.04,7.09018718]
[1764289279565,8.80994492,141.09,141.04,24.81565513]
[1764289279978,0.62,141.08,141.04,24.81565513]
[1764289280276,8.80994492,141.07,141.04,24.81565513]
[1764289280656,9.42994492,141.07,141.04,24.81565513]
[1764289280862,0.62,141.06,141.04,24.81565513]
[1764289281657,0.62,141.06,141.04,7.09018718]
[1764289285265,8.80994492,141.11,141.04,24.81565513]
[1764289285455,0.62,141.07,141.04,24.81565513]
[1764289289170,8.80994492,141.06,141.04,24.81565513]
[1764289289567,0.62,141.05,141.04,24.81565513]
[1764289290681,9.6737117,141.09,141.04,24.81565513]
[1764289290887,0.62,141.06,141.04,24.81565513]
[1764289291257,8.80994492,141.06,141.04,24.81565513]
[1764289294295,8.80994492,141.09,141.04,24.81565513]
[1764289294473,0.62,141.06,141.04,24.81565513]
[1764289296074,0.62,141.06,141.03,7.09051316]
[1764289298082,0.62,141.06,141.02,7.09112107]
[1764289298083,8.80994492,141.04,141.02,7.09112107]
[1764289298465,9.42994492,141.04,141.02,7.09112107]
[1764289298681,8.80994492,141.03,141.02,7.09112107]
[1764289299489,8.80994492,141.03,141.01,24.82023119]
[1764289299674,8.80994492,141.03,141.01,25.53023119]
[1764289304197,0.62,141.02,141.01,24.82023119]
[1764289304398,0.62,141.02,141.0,7.09219858]
[1764289305099,9.42994492,141.04,141.0,25.47269503]
[1764289305484,0.62,141.03,141.0,25.47269503]
[1764289308113,8.80994492,141.04,141.01,0.65]
[1764289308398,8.80994492,141.04,141.02,7.09119273]
[1764289308904,8.80994492,141.04,141.02,7.74119273]
[1764289309075,8.80994492,141.04,141.02,7.09119273]
[1764289309679,8.80994492,141.04,141.02,7.74119273]
[1764289310609,8.80994492,141.04,141.03,0.65]
[1764289311178,8.80994492,141.04,141.02,7.09119273]
[1764289311502,8.80994492,141.04,141.02,7.74119273]
[1764289314495,8.80994492,141.04,141.02,7.09119273]
[1764289314683,9.42994492,141.04,141.02,7.09119273]
[1764289315079,8.80994492,141.04,141.02,7.09119273]
[1764289315484,0.62,141.09,141.03,0.65]
[1764289315712,8.80994492,141.08,141.03,0.65]
[1764289316196,0.62,141.08,141.03,0.65]
[1764289317484,0.62,141.08,141.04,24.81565513]
[1764289317902,0.62,141.08,141.04,25.46565513]
[1764289321795,8.80994492,141.09,141.07,16.308864]
[1764289322122,8.80994492,141.11,141.07,16.308864]
[1764289322290,8.80994492,141.12,141.08,0.65]
[1764289322486,8.80994492,141.13,141.08,0.65]
[1764289322790,8.80994492,141.13,141.08,16.958864]
[1764289322999,8.80994492,141.13,141.09,24.80686086]
[1764289323215,8.80994492,141.13,141.09,25.45686086]
[1764289323388,8.80994492,141.13,141.1,0.65]
[1764289325413,8.80994492,141.13,141.11,7.08666997]
[1764289326291,8.80994492,141.13,141.08,7.08813211]
[1764289326292,0.62,141.12,141.08,7.08813211]
[1764289326912,0.86376678,141.11,141.08,7.08813211]
[1764289327107,0.86376678,141.11,141.06,24.81131248]
[1764289327300,8.80994492,141.09,141.06,17.72258965]
[1764289327813,9.42994492,141.09,141.06,17.72258965]
[1764289331695,9.42994492,141.09,141.06,24.81177155]
[1764289333599,9.42994492,141.09,141.05,7.73948997]
[1764289333806,8.80994492,141.07,141.05,7.73948997]
[1764289335014,8.80994492,141.08,141.05,25.46370124]
[1764289335215,0.62,141.07,141.05,7.08948997]
[1764289335425,0.62,141.07,141.04,23.39904006]
[1764289335621,0.62,141.07,141.04,24.10904006]
[1764289336197,0.62,141.07,141.04,41.83450801]
[1764289336396,8.80994492,141.08,141.04,41.83450801]
[1764289336603,9.42994492,141.08,141.04,41.83450801]
[1764289338697,0.62,141.07,141.04,41.83450801]
[1764289338898,9.42994492,141.08,141.04,41.83450801]
[1764289341619,9.42994492,141.08,141.04,41.12450801]
[1764289341812,8.80994492,141.08,141.05,0.71]
[1764289342502,9.42994492,141.08,141.04,41.83450801]
[1764289344510,8.80994492,141.06,141.04,41.83450801]
[1764289345121,9.42994492,141.08,141.04,41.83450801]
[1764289345622,8.80994492,141.06,141.0,7.09219858]
[1764289345928,7.95195434,141.08,140.98,0.71]
[1764289345929,8.80994492,141.04,140.98,0.71]
[1764289346135,8.80994492,141.02,140.98,0.71]
[1764289346436,3.74,141.04,140.98,0.71]
[1764289347641,3.74,141.04,140.99,24.82445563]
[1764289348125,3.74,141.04,141.0,0.71]
[1764289349426,3.74,141.04,141.01,7.09169562]
[1764289349625,8.80994492,141.02,140.99,7.0926478]
[1764289349928,8.80994492,141.02,140.99,7.8026478]
[1764289350103,9.42994492,141.03,140.99,7.8026478]
[1764289350801,0.86376678,141.06,140.99,7.0926478]
[1764289351023,11.92994492,141.05,141.0,0.71]
[1764289351207,12.54994492,141.05,141.0,0.71]
[1764289352029,0.62,141.04,141.0,0.71]
[1764289352832,11.92994492,141.05,141.01,7.09169562]
[1764289353007,12.54994492,141.05,141.01,7.09169562]
[1764289353324,12.54994492,141.05,141.01,7.80169562]
[1764289353834,13.4137117,141.05,141.01,7.80169562]
[1764289361121,12.7937117,141.05,141.02,0.69]
[1764289361735,11.92994492,141.05,141.02,0.69]
[1764289361942,13.4137117,141.05,141.02,0.69]
[1764289362916,12.54994492,141.05,141.02,0.69]
[1764289363742,12.54994492,141.05,141.03,7.09068992]
[1764289364337,12.54994492,141.05,141.02,7.78102773]
[1764289365647,12.54994492,141.05,141.0,7.09183152]
[1764289365648,8.80994492,141.03,141.0,7.09183152]
[1764289365830,3.12,141.02,141.0,7.09183152]
[1764289366017,3.74,141.02,141.0,7.09183152]
[1764289366222,9.42994492,141.01,140.99,7.09261609]
[1764289366737,9.42994492,141.01,140.98,7.09301014]
[1764289366914,8.80994492,141.01,140.98,7.78301014]
[1764289367538,8.80994492,141.01,140.98,24.82602191]